Cogmind - Beta 12 @@@ ROGUE MODE // 2023.03.28 @ 18:27:04 Player: Plexion Result: Destroyed self with Improved Grenade Launcher Performance ------------- Evolutions (1) 500 Regions Visited (6) 1200 Robots Destroyed (88) 440 Value Destroyed (1530) 1530 Prototype IDs (28) 560 Alien Tech Used (0) 0 Bonus (300) 300 TOTAL SCORE: 4530 Bonus ------- Aligned with FarCom 300 Cogmind --------- Core Integrity 0/400 Matter 370/500 Energy 309/310 System Corruption 11% Temperature Cool (0) Movement Treading (240) Ox1 Location -8/Mines Parts ------- > --- POWER (1) -------- Reinforced Fission Core > --- PROPULSION (3) --- Light Treads Light Treads Improved Flight Unit > --- UTILITY (3) ------ High-capacity Storage Unit High-capacity Matter Pod (fused) Experimental Core Analyzer > --- WEAPON (2) ------- 8R-AWN's Boregun Improved Grenade Launcher > --- INVENTORY (20) --- Cesium-ion Thruster Cesium-ion Thruster Cesium-ion Thruster Cesium-ion Thruster High-capacity Matter Pod (161) Machine Analyzer Experimental Targeting Computer Advanced Weapon Cycler Hacking Suite Hacking Suite AS-neutralizer No. 17b AWS/EX-DEC Minigun Minigun Minigun Minigun Improved Grenade Launcher Great Axe Peak State ------------ > --- POWER ------------ Reinforced Fission Core > --- PROPULSION ------- Light Treads Light Treads Improved Flight Unit > --- UTILITY ---------- High-capacity Storage Unit High-capacity Matter Pod Experimental Core Analyzer > --- WEAPON ----------- 8R-AWN's Boregun 8R-AWN's Boregun > --- INVENTORY -------- Cesium-ion Thruster Cesium-ion Thruster Cesium-ion Thruster Cesium-ion Thruster High-capacity Matter Pod Machine Analyzer Experimental Targeting Computer Advanced Weapon Cycler Hacking Suite Hacking Suite AS-neutralizer No. 17b AWS/EX-DEC Minigun Minigun Minigun Minigun Improved Grenade Launcher Improved Grenade Launcher Great Axe [Rating: 51] Favorites ----------- Power Improved Ion Engine Engine Improved Ion Engine Power Core Reinforced Fission Core Propulsion Light Treads Treads Light Treads Wheel Wheel Flight Unit Improved Flight Unit Utility High-capacity Storage Unit Device Cloak of Protection Storage High-capacity Storage Unit Processor Improved Targeting Computer Protection Light Armor Plating Weapon Minigun Energy Gun EM Pulse Gun Ballistic Gun Minigun Ballistic Cannon Light Cannon Launcher Improved Grenade Launcher Slashing Weapon Great Axe Build | -11 -10 -10 -9 -9 -9 -8 ------- Run | Jun Mat Min Mat Min Exi Min Slots Evolved 2 | . . . 2 . . . Power . | . . . . . . . Propulsion 1 | . . . 1 . . . Utility 1 | . . . 1 . . . Weapon . | . . . . . . . Parts Attached 66 | 6 4 6 18 2 22 8 Power 5 | 1 . 2 1 . 1 . Engine 3 | 1 . 1 1 . . . Core 2 | . . 1 . . 1 . Reactor . | . . . . . . . Propulsion 19 | 2 . 3 8 . 6 . Treads 15 | 2 . 1 8 . 4 . Leg . | . . . . . . . Wheel 2 | . . 2 . . . . Hover . | . . . . . . . Flight 2 | . . . . . 2 . Utility 18 | 1 3 . 5 . 9 . Device 3 | . . . 1 . 2 . Storage 5 | 1 1 . . . 3 . Processor 3 | . . . 1 . 2 . Hackware . | . . . . . . . Protection 7 | . 2 . 3 . 2 . Artifact . | . . . . . . . Weapon 24 | 2 1 1 4 2 6 8 Energy Gun 1 | 1 . . . . . . Energy Cannon . | . . . . . . . Ballistic Gun 13 | 1 . 1 3 1 3 4 Ballistic Cannon 1 | . 1 . . . . . Launcher 6 | . . . 1 1 1 3 Special Weapon . | . . . . . . . Impact Weapon . | . . . . . . . Slashing Weapon 3 | . . . . . 2 1 Piercing Weapon . | . . . . . . . Special Melee Weapon . | . . . . . . . Unidentified Prototypes 5 | . . . 1 . 4 . Parts Lost 15 | . . 2 2 . 10 1 Power 2 | . . 1 . . 1 . Propulsion 7 | . . . 2 . 5 . Utility 4 | . . . . . 4 . Weapon 2 | . . 1 . . . 1 Highest Loss Streak 5 | . . 2 1 . 5 1 To Critical Strikes 6 | . . . . . 6 . Average Slot Usage (%) 92 | . 92 99 98 100 81 100 Engine 8 | . 14 10 9 11 5 . Core 3 | . . 3 . . 4 11 Treads 27 | . 28 17 32 33 28 22 Wheel 1 | . . 10 . . . . Flight 1 | . . . . . . 11 Storage 13 | . 14 14 11 11 11 22 Processor 5 | . . . 10 11 3 11 Protection 7 | . 7 14 10 11 5 . Ballistic Gun 16 | . 14 14 20 21 14 15 Ballistic Cannon 3 | . 10 14 1 . . . Slashing Weapon 2 | . . . . . 7 5 Naked Turns . | . . . . . . . Heaviest Build 77 | 12 53 51 56 59 72 77 Greatest Support 60 | 40 40 40 60 60 60 40 Greatest Overweight (x) 5 | . 1 5 1 . 1 1 Average Overweight (x) . | . . 3 . . . 1 Largest Inventory Capacity 35 | 8 20 20 20 20 35 20 Average Capacity 19 | 6 14 20 20 20 20 20 Most Carried 20 | 3 9 12 20 20 20 20 Average Carried 14 | 1 6 10 17 19 15 19 Final Capacity 20 | 8 20 20 20 20 20 20 Final Carried 20 | 3 9 10 20 20 20 19 Class Distribution -------------------- 52% | Mutant 46% | Scavenger-Mutant Dominant Class ---------------- Mutant | -10/Materials Mutant | -10/Mines Mutant | -9/Materials Scavenger-Mutant | -9/Mines Scavenger-Mutant | -9/Exiles Scavenger-Mutant | -8/Mines Resources | -11 -10 -10 -9 -9 -9 -8 ----------- Run | Jun Mat Min Mat Min Exi Min Matter Collected 2926 | 244 505 162 760 33 859 363 Remotely . | . . . . . . . Salvage Created 2966 | 40 640 211 1195 66 584 230 Parts 257 | 1 52 19 71 6 80 28 Haulers Intercepted 5 | . 2 . 3 . . . Recyclers Shooed 3 | . . . 3 . . . Parts Field Recycled . | . . . . . . . Retrieved Matter . | . . . . . . . Parts Self-Destructed . | . . . . . . . Prevented . | . . . . . . . Kills | -11 -10 -10 -9 -9 -9 -8 ------- Run | Jun Mat Min Mat Min Exi Min Combat Hostiles Destroyed 49 | . 14 6 13 3 3 10 Melee 1 | . . . . . 1 . Guns 27 | . 9 3 11 . 1 3 Cannons 8 | . 5 3 . . . . AOE 13 | . . . 2 3 1 7 Classes Destroyed 15 | 1 5 5 2 . 2 . Worker 5 | . . 2 1 1 . 1 Builder 2 | . . 2 . . . . Tunneler 4 | . . 1 1 1 . 1 Hauler 5 | . 2 . 3 . . . Recycler 7 | 1 . 1 5 . . . Mechanic 1 | . . . 1 . . . Operator 2 | . 1 . 1 . . . Turret 1 | . . . . . 1 . Watcher 6 | . 1 . 5 . . . Swarmer 20 | . 3 3 3 3 . 8 Grunt 16 | . 11 . 3 . . 2 Sentry 7 | . . . 7 . . . Demolisher 1 | . . 1 . . . . Zionite 8 | . . . . . 8 . Assembled 4 | . . 2 . . 2 . Best Kill Streak 7 | 1 4 4 7 4 5 3 Combat Bots Only 3 | . 3 3 2 3 1 3 Max Kills in Single Turn 4 | 1 1 1 2 4 1 3 Gunslinging . | . . . . . . . Exploded 3 | . . . 1 3 1 3 Melee 1 | . . . . . 1 . Uniques/NPCs Destroyed 4 | . . . . . 4 . 8R-AWN (-9/Exiles) EX-HEX (-9/Exiles) EX-BIN (-9/Exiles) EX-DEC (-9/Exiles) Combat | -11 -10 -10 -9 -9 -9 -8 -------- Run | Jun Mat Min Mat Min Exi Min Damage Taken 2921 | . 233 426 635 19 1311 297 Core 516 | . 41 62 89 . 237 87 Absorbed by Shields . | . . . . . . . Redirected to Shielding 33 | . 8 11 14 . . . Core Remaining (%) 79 | 100 . 58 . . . . Volleys Fired 269 | . 59 23 73 1 96 17 Largest 2 | . 2 2 2 1 1 2 Hottest 60 | . 60 55 55 36 36 60 Shots Fired 432 | . 116 46 144 1 96 29 Gun 351 | . 84 23 126 . 94 24 Cannon 71 | . 32 23 16 . . . Launcher 10 | . . . 2 1 2 5 Special . | . . . . . . . Kinetic 395 | . 89 46 142 . 94 24 Thermal . | . . . . . . . Explosive 10 | . . . 2 1 2 5 Electromagnetic 27 | . 27 . . . . . Robot Hit Streak 18 | . 9 7 18 . 6 5 Robot Miss Streak 7 | . 3 2 2 . 7 3 Penetration Max 1 | . . . . . 1 . Secondary Targets . | . . . . . . . Shots Hit Robots 294 | . 59 30 106 . 89 10 Core Hits 130 | . 26 15 44 4 27 14 Critical Kills 5 | . . . . . 3 2 Critical Parts Destroyed 9 | . 1 . . . 6 2 Critical Strikes 19 | . 2 1 . . 12 4 Destroy 14 | . 1 . . . 9 4 Blast 1 | . . 1 . . . . Corrupt 1 | . 1 . . . . . Sever 3 | . . . . . 3 . Melee Attacks 57 | . . . . . 56 1 Impact . | . . . . . . . Slashing 57 | . . . . . 56 1 Piercing . | . . . . . . . Sneak Attacks 1 | . . . . . . 1 Combat Hostiles . | . . . . . . . Follow-up Attacks . | . . . . . . . Damage Inflicted 6970 | 3 844 481 1943 242 2740 717 Guns 3191 | . 622 208 1580 . 562 219 Cannons 651 | . 222 273 156 . . . Explosions 958 | . . . 199 225 111 423 Melee 2142 | . . . . . 2067 75 Ramming 28 | 3 . . 8 17 . . Kinetic 3592 | . 594 481 1736 . 562 219 Thermal . | . . . . . . . Explosive 958 | . . . 199 225 111 423 Electromagnetic 250 | . 250 . . . . . Impact . | . . . . . . . Slashing 2142 | . . . . . 2067 75 Piercing . | . . . . . . . Highest Corruption 11 | . 1 1 . . 10 11 Average Corruption 6 | . 1 1 . . 10 10 Corruption Purged . | . . . . . . . Corruption Blocked . | . . . . . . . Effects 63 | . . 2 . . 23 38 Message Errors 12 | . . . . . 8 4 Matter Fused 16 | . . . . . 7 9 Heat Flow Errors 13 | . . 2 . . 1 10 Energy Discharges 4 | . . . . . . 4 Parts Fused 1 | . . . . . . 1 Data Loss (minor) 9 | . . . . . 4 5 Data Loss (major) 5 | . . . . . 3 2 Misfires 1 | . . . . . . 1 Alerts 2 | . . . . . . 2 Overload Shots . | . . . . . . . Overflow Damage 249 | . . . 43 48 158 . Projectiles . | . . . . . . . Explosions 109 | . . . 43 48 18 . Melee 140 | . . . . . 140 . Knockbacks 5 | . 1 4 . . . . Impact . | . . . . . . . Kinetic 5 | . 1 4 . . . . Secondary . | . . . . . . . Self-Inflicted Damage 113 | . . . 19 . . 94 Shots 4 | . . . 1 . . 3 Rammed 2 | . . . 1 1 . . Targets Rammed 3 | 1 . . 1 1 . . Kicked . | . . . . . . . Crushed 1 | 1 . . . . . . Highest Temperature 266 | . 30 199 29 . 123 266 Average Temperature 51 | . 10 99 8 . 43 82 Received Heat Transfer 369 | . 120 . 213 . . 36 Siege Activations . | . . . . . . . Robots Corrupted . | . . . . . . . Combat Hostiles . | . . . . . . . Parts Fried 1 | . 1 . . . . . Impact Corruptions . | . . . . . . . Robots Melted . | . . . . . . . Combat Hostiles . | . . . . . . . Parts Melted . | . . . . . . . Heat Transferred . | . . . . . . . Parts Sabotaged . | . . . . . . . Parts Stolen . | . . . . . . . Parts Stripped . | . . . . . . . Power Chain Reactions . | . . . . . . . Missiles Intercepted . | . . . . . . . Alert | -11 -10 -10 -9 -9 -9 -8 ------- Run | Jun Mat Min Mat Min Exi Min Peak Influence 304 | 5 204 134 304 89 . 111 Initial 74 | . 3 54 11 74 . . Average 86 | . 125 50 122 60 . 53 Maximum Alert Level 1 | . 1 . 1 . . . Low Security (%) 96 | 100 95 100 86 100 . 100 Level 1 3 | . 4 . 13 . . . Level 2 . | . . . . . . . Level 3 . | . . . . . . . Level 4 . | . . . . . . . Level 5 . | . . . . . . . High Security . | . . . . . . . Max Security . | . . . . . . . Squads Dispatched 5 | . 2 . 2 1 . . Investigation 2 | . 1 . . 1 . . Extermination . | . . . . . . . Reinforcement 3 | . 1 . 2 . . . Assault . | . . . . . . . Garrison . | . . . . . . . Intercept . | . . . . . . . Searches Triggered . | . . . . . . . Construction Impeded . | . . . . . . . Haulers Reinforced . | . . . . . . . Active Scanning Responses . | . . . . . . . Cargo Convoy Interrupts . | . . . . . . . Stealth | -11 -10 -10 -9 -9 -9 -8 --------- Run | Jun Mat Min Mat Min Exi Min Distress Signals 6 | . 1 . 5 . . . Communications Jammed . | . . . . . . . Distress Signals . | . . . . . . . Times Spotted 110 | . 28 9 26 3 33 11 Peak Tracking Total 9 | . 5 3 5 3 9 4 Tactical Retreats 20 | . 3 . 1 . 15 1 Traps | -11 -10 -10 -9 -9 -9 -8 ------- Run | Jun Mat Min Mat Min Exi Min Traps Triggered 1 | . 1 . . . . . Indirectly . | . . . . . . . Trap Hack Attempts . | . . . . . . . Triggered . | . . . . . . . Disarmed . | . . . . . . . Reprogrammed . | . . . . . . . Reused . | . . . . . . . Traps Extracted . | . . . . . . . Installed . | . . . . . . . Triggered . | . . . . . . . Exploded 3 | . . . . . 3 . Machines | -11 -10 -10 -9 -9 -9 -8 ---------- Run | Jun Mat Min Mat Min Exi Min Machines Disabled 15 | . 1 . 3 . 11 . Max in Single Turn 2 | . 1 . 1 . 2 . Machines Repaired . | . . . . . . . Machines Sabotaged . | . . . . . . . Overloaded Fab Kills . | . . . . . . . Hacking | -11 -10 -10 -9 -9 -9 -8 --------- Run | Jun Mat Min Mat Min Exi Min Machines Accessed 15 | . 7 . 5 1 2 . Terminals 11 | . 6 . 5 . . . Fabricators . | . . . . . . . Repair Stations . | . . . . . . . Recycling Units 1 | . 1 . . . . . Scanalyzers . | . . . . . . . Garrison Access . | . . . . . . . Total Hacks 35 | . 16 . 16 1 2 . Successful 16 | . 8 . 5 1 2 . Failed 19 | . 8 . 11 . . . Catastrophic 3 | . . . 3 . . . Database Lockouts . | . . . . . . . Manual 24 | . 15 . 8 . 1 . Terminals 30 | . 14 . 16 . . . Fabricators . | . . . . . . . Repair Stations . | . . . . . . . Recycling Units 2 | . 2 . . . . . Scanalyzers . | . . . . . . . Garrison Access . | . . . . . . . Terminal Hacks 11 | . 4 . 4 1 2 . Record 1 | . . . . . 1 . Robot Analysis 5 | . 3 . 2 . . . Open Door 1 | . . . . 1 . . Branch Access Points 1 | . . . 1 . . . Recall Reinforcements 1 | . . . 1 . . . Zone Layout 1 | . 1 . . . . . EX-Prototype ID Bank 1 | . . . . . 1 . Fabricator Hacks . | . . . . . . . Repair Station Hacks . | . . . . . . . Recycling Unit Hacks . | . . . . . . . Scanalyzer . | . . . . . . . Garrison Access Hacks . | . . . . . . . Unauthorized Hacks 5 | . 4 . 1 . . . Terminals 4 | . 3 . 1 . . . Botnet 2 | . 2 . . . . . Operators 2 | . 1 . 1 . . . Fabricators . | . . . . . . . Repair Stations . | . . . . . . . Recycling Units 1 | . 1 . . . . . Tunnel 1 | . 1 . . . . . Scanalyzers . | . . . . . . . Garrison Access . | . . . . . . . Data Cores Recovered . | . . . . . . . Used . | . . . . . . . Hacking Detections 8 | . 4 . 4 . . . Full Trace Events . | . . . . . . . Feedback Events . | . . . . . . . Feedback Blocked . | . . . . . . . Robot Schematics Acquired . | . . . . . . . Robots Built . | . . . . . . . Authchips . | . . . . . . . Time . | . . . . . . . Total Robot Build Rating . | . . . . . . . Part Schematics Acquired . | . . . . . . . Parts Built . | . . . . . . . Authchips . | . . . . . . . Time . | . . . . . . . Total Part Build Rating . | . . . . . . . Parts Repaired . | . . . . . . . Time . | . . . . . . . Parts Recycled . | . . . . . . . Recycled Matter . | . . . . . . . Retrieved Matter . | . . . . . . . Retrieved Components . | . . . . . . . Parts Scanalyzed . | . . . . . . . Part Schematics Acquired . | . . . . . . . Parts Damaged . | . . . . . . . Bothacking | -11 -10 -10 -9 -9 -9 -8 ------------ Run | Jun Mat Min Mat Min Exi Min Used RIF Installer . | . . . . . . . Robots Hacked . | . . . . . . . Non-combat . | . . . . . . . Combat . | . . . . . . . Robot Hacks Applied . | . . . . . . . Relay Couplers Released . | . . . . . . . Fabnet Peak Effective % . | . . . . . . . Robots Rewired . | . . . . . . . Allies Hacked . | . . . . . . . Hacks Repelled . | . . . . . . . Allies | -11 -10 -10 -9 -9 -9 -8 -------- Run | Jun Mat Min Mat Min Exi Min Total Allies 3 | . . 3 . . . . Largest Group 3 | . . 3 . . . . Highest-Rated Group 40 | . . 40 . . . . Highest-Rated Ally 16 | . . 16 . . . . Total Orders 2 | . . 2 . . . . STAY 2 | . . 2 . . . . Ally Attacks 23 | . . 23 . . . . Total Damage 216 | . . 216 . . . . Kills 5 | . . 5 . . . . Allies Corrupted . | . . . . . . . Allies Melted . | . . . . . . . Intel | -11 -10 -10 -9 -9 -9 -8 ------- Run | Jun Mat Min Mat Min Exi Min Robot Analysis Total 5 | . 3 . 2 . . . Derelict Logs Recovered 4 | . . 2 . 2 . . Drone Launches . | . . . . . . . Drone Recoveries . | . . . . . . . Exploration | -11 -10 -10 -9 -9 -9 -8 ------------- Run | Jun Mat Min Mat Min Exi Min Turns Passed 8425 | 73 1503 1031 1208 1011 2565 1034 Spaces Moved 3933 | 44 640 529 559 627 1129 405 Core 9 | 9 . . . . . . Treads 3509 | 35 640 114 559 627 1129 405 Legs . | . . . . . . . Wheels 415 | . . 415 . . . . Hover . | . . . . . . . Flight . | . . . . . . . Fastest Speed 50 | 50 160 140 160 160 160 240 Average Speed 183 | 137 199 166 160 160 187 240 Slowest Speed 240 | 160 240 240 240 160 240 240 Overloaded Moves . | . . . . . . . Propulsion Burnouts . | . . . . . . . Robots Hopped . | . . . . . . . Cave-ins Triggered . | . . . . . . . Exploration Rate (%) 69 | 4 91 91 51 93 89 66 Regions Visited 6 Branch Regions 4 Pre-discovered Areas 4 | . 1 . . 2 1 . Known Exits Taken 2 | . . 1 1 . . . Unknown Exits Taken 4 | 1 1 . . 1 1 . Scrap Searched 3 | . . 2 . 1 . . Spaces Dug 59 | . . . . 18 . 41 Terrain Destroyed 131 | . . . 11 18 32 70 Melee . | . . . . . . . Projectile 24 | . . . . . 18 6 AOE 105 | . . . 11 18 12 64 Terrain Rammed . | . . . . . . . Walls Destroyed . | . . . . . . . Machines Disabled . | . . . . . . . Actions | -11 -10 -10 -9 -9 -9 -8 --------- Run | Jun Mat Min Mat Min Exi Min Total 4655 | 53 752 632 751 633 1399 435 Wait 201 | . 40 71 46 1 39 4 Move 3927 | 43 639 528 558 626 1128 405 Hop . | . . . . . . . Pick Up 69 | 3 6 3 28 1 28 . Fast Attach 18 | 6 3 . 5 . 4 . Attach 21 | . . 2 4 . 14 1 Detach 14 | . 2 . 4 . 8 . Swap 27 | . 1 4 9 2 4 7 Drop 49 | . 2 1 23 1 22 . Fire 269 | . 59 23 73 1 96 17 Melee 57 | . . . . . 56 1 Ram . | . . . . . . . Kick . | . . . . . . . Crush 3 | 1 . . 1 1 . . Escape Stasis . | . . . . . . . Rewire . | . . . . . . . Trap . | . . . . . . . Miscellaneous . | . . . . . . . Route ------- -11/Junkyard -10/Materials (discovered 4 exits: *Mat x3 / [*Min]) -10/Mines (discovered 2 exits: *Mat x2) -9/Materials (discovered 3 exits: [*Mat] / *Min / Sto) -9/Mines (discovered 3 exits: [*Mat x2] / *Exi) -9/Exiles (discovered 2 exits: [*Min x2]) -8/Mines (discovered 1 exit: [*Mat]) History --------- Turn | Location | Event 6 | -11/Junkyard | Discovered new exit (range 15) 74 | -11/Junkyard | Entered Materials 258 | -10/Materials | Discovered new exit (range 10) 303 | -10/Materials | Build established: Mutant 550 | -10/Materials | Discovered new exit (range 16) 691 | -10/Materials | Discovered new exit (range 7) 950 | -10/Materials | Discovered new exit (range 9) 1577 | -10/Materials | Entered Mines 1746 | -10/Mines | Assisted by bots powering up and referring to "LRC-V3" 1777 | -10/Mines | Discovered new exit (range 5) 2124 | -10/Mines | Received a Rocket Launcher from a helpful Derelict 2184 | -10/Mines | Assembled infested the area 2189 | -10/Mines | Assisted by a Guerilla fighting off Assembled 2354 | -10/Mines | Learned Materials garrison access intel 2403 | -10/Mines | Identified exit to Materials 2608 | -10/Mines | Entered Materials 2608 | -9/Materials | Evolved 2 slots: Propulsion x1, Utility x1 2888 | -9/Materials | Identified exit to Mines 2888 | -9/Materials | Identified exit to Storage 3461 | -9/Materials | Discovered new exit (range 16) 3623 | -9/Materials | Build established: Scavenger-Mutant 3816 | -9/Materials | Entered Mines 3971 | -9/Mines | Met a Derelict shopkeep closing up shop 4071 | -9/Mines | Learned Materials emergency access door positions 4120 | -9/Mines | Learned location of Storage (-9) 4310 | -9/Mines | Discovered new exit (range 7) 4493 | -9/Mines | Discovered new exit (range 12) 4821 | -9/Mines | Deemed a non-threat by the Exiles lab entrance 4821 | -9/Mines | Discovered new exit (range 5) 4827 | -9/Mines | Entered Exiles 4853 | -9/Exiles | Discovered new exit (range 15) 4871 | -9/Exiles | Met 8R-AWN 4891 | -9/Exiles | Met EX-HEX 4952 | -9/Exiles | Met EX-DEC 4981 | -9/Exiles | Learned location of Zion (-6) 5034 | -9/Exiles | Discovered new exit (range 14) 5204 | -9/Exiles | Met EX-BIN 5223 | -9/Exiles | Aligned with FarCom system 5225 | -9/Exiles | Given EX-Vault access code 5265 | -9/Exiles | Opened EX-Vault 5278 | -9/Exiles | Found Cloak of Protection 5283 | -9/Exiles | Found Lightpack 2.0 5286 | -9/Exiles | Found Trap Reconfigurator 5319 | -9/Exiles | Warned to stay clear of 0b10 Research branches 6008 | -9/Exiles | Attacked by the Exiles 6179 | -9/Exiles | Lost 5 parts (1p2n2u) 6201 | -9/Exiles | Core integrity fell below 50% 6225 | -9/Exiles | Destroyed 8R-AWN 6232 | -9/Exiles | Found Prototype Ballistic Gun 6232 | -9/Exiles | Identified 8R-AWN's Boregun 6239 | -9/Exiles | Found 8R-AWN's Boregun 6244 | -9/Exiles | Found Prototype Device 6244 | -9/Exiles | Identified AS-neutralizer No. 17b 6249 | -9/Exiles | Found Prototype Processor 6255 | -9/Exiles | Lost 3 parts (2n1u) 6507 | -9/Exiles | Build established: Mutant 6635 | -9/Exiles | Destroyed EX-HEX 6664 | -9/Exiles | System corruption reached 10% 6669 | -9/Exiles | Core integrity fell below 20% 6674 | -9/Exiles | Destroyed EX-BIN 6825 | -9/Exiles | Destroyed EX-DEC 6904 | -9/Exiles | Found Prototype Energy Gun 6986 | -9/Exiles | Found Prototype Processor 7364 | -9/Exiles | Identified Exp. Core Analyzer 7392 | -9/Exiles | Entered Mines 7402 | -8/Mines | NK-0LA came to Exiles' defense 7680 | -8/Mines | Build established: Scavenger-Mutant 8267 | -8/Mines | Discovered new exit (range 4) 8426 | -8/Mines | Destroyed self with Improved Grenade Launcher Last Messages --------------- 08230_ System corrupted: Heat flow error (+173). 08260_ System corrupted: Heat flow error (+145). 08267_ EXIT=FOUND 08277_ System corrupted: Heat flow error (+117). 08321_ System corrupted: Energy discharge (-120). 08344_ System corrupted: Energy discharge (-105). 08360_ System corrupted: Component data lost. 08373_ HV Slug penetrates Wall. 08376_ HV Slug penetrates S-10 Pest. 08376_ S-10 Pest suffers critical hit (Destroy). 08376_ S-10 Pest destroyed. 08376_ HV Slug penetrates Wall. 08378_ System corrupted: Matter fused (-8). 08381_ Acquired 20 matter. 08390_ K-01 Serf collects debris. 08401_ System corrupted: Matter fused (-9). 08422_ HV Slug penetrates Wall. 08422_ HV Slug penetrates Earth. 08422_ 8R-AWN's Boregun destroyed. 08426_ S-10 Pest destroyed. Map ----- +----------------------------------------------------+ | ???????????###???????????????????????????????????? | | ??????????# ##??????????????????????????????????? | | ?????????# #??????????????????????????????????? | | ????????## #??????????????????????????????????? | | ???????## #??????????????????????????????????? | | ???????# #??????????????????????????????????? | | ??????## #??????????????????????????????????? | | ####### #???????????????????????????????????? | | #????????????????????????????????????? | | #?????????????????????????????????????? | | ########## #?????????????????????????????????????? | | #????????# #####?????????????????????????????????? | | ###??????# #?????????????????????????????????? | | # #??????##### #?????????????????????????????????? | | # #??##??????# #?????????????????????????????????? | | ###??# ????# #?????????????????????????????????? | | # #?## ??#[######????????????????????????????? | | #?# ## ## ####?????????????????????????? | | ###???"""" * ##????????????????????????? | | ??????"""" #????????????????????????? | | ??????"""" ##### #????????????????????????? | | ????? ?????# ##????????????????????????? | | ???? ###??????# ### ##?????????????????????????? | | ??? ???????????# ##?# #???####???????????????????? | | ???????????????###??# ####%=*#???????????????????? | | ????????????????????# @%* ???????????????????? | | ????????????????????######[ #??????????????????? | | ?????????????????????????? ???????????????? | | ??????????????????????????? # #?????????????? | | ??????????????????????????????#?? ##?????????????? | | ?????????????????????????????????????????????????? | | ?????????????????????????????????????????????????? | | ?????????????????????????????????????????????????? | | ?????????????????????????????????????????????????? | | ?????????????????????????????????????????????????? | | | | | | | | | | | | | | | | | | | | | | | | | | | | | | | +----------------------------------------------------+ Best States ------------- Heat Dissipation 28 Energy Generation 19 Energy Capacity 310 Matter Stores 486 Matter Capacity 500 Sight Range 16 Terrain Scan Density 10 Armor Coverage 150 Core Shielding 20 Propulsion Shielding 33 Evasion (%) 40 Targeting Accuracy 6 Core Analysis 8 Recoil Reduction 3 Item Schematics ----------------- None Robot Schematics ------------------ None Fabricated ------------ Nothing Alien Tech Used ----------------- None Achievements -------------- None Challenges ------------ None Game ------ Seed PropulsionScanTerminator Manual? 0 Play Time 00:42:27 Cumulative 377.5 hours Start 2023.03.27 @ 19:47:45 End 2023.03.28 @ 18:27:04 Sessions 3 Manual Loads 0 Difficulty Rogue Special Mode None Game No. 464 Rogue 377 Adventurer 87 Explorer 0 Win Type - Total 18 Types 7/0/9/1/1/0/0/0/0 Lore% 87 Gallery% 90 Achievement% 73 Wizard Run 0 Options --------- ASCII 0 Keyboard 1 Movement Numpad Keybinds 0 Fullscreen 1 Font 18/SmallcapsGlow Map View 76x50 Tactical HUD 1 Map Filters NONE Filters NONE Steam 1 RUN: ff6e27d6-8204-43f5-80a1-5a7560f02f5b